bitfinex/quotes_SOLUSD_20251007
["timestamp","ask_amount","ask_price","bid_price","bid_amount"]
[1759862777970,3.34717971,222.24,222.23,4.4998425]
[1759862779075,3.34717971,222.24,222.23,5.1998425]
[1759862779775,3.34717971,222.24,222.23,16.07631771]
[1759862780077,3.11378706,222.3,222.24,10.87647521]
[1759862780382,3.61113507,222.32,222.24,10.87647521]
[1759862780383,3.34950658,222.29,222.26,4.49923513]
[1759862780560,3.34950658,222.28,222.26,5.19923513]
[1759862780748,3.34950658,222.27,222.26,5.19923513]
[1759862786463,3.34950658,222.27,222.25,4.49943757]
[1759862786666,3.34950658,222.26,222.25,5.19943757]
[1759862788790,3.34950658,222.26,222.25,4.49943757]
[1759862791569,3.34950658,222.26,222.25,5.19943757]
[1759862792376,3.34950658,222.26,222.25,4.49943757]
[1759862793177,3.34950658,222.26,222.25,5.19943757]
[1759862793785,3.94950658,222.26,222.23,4.49969131]
[1759862794001,3.34950658,222.25,222.23,4.49969131]
[1759862794170,2.59543103,222.26,222.23,4.49969131]
[1759862794171,3.34950658,222.24,222.23,4.49969131]
[1759862794497,3.34950658,222.24,222.23,5.19969131]
[1759862797467,3.34950658,222.24,222.23,4.49969131]
[1759862798366,3.34950658,222.24,222.23,5.19969131]
[1759862799470,3.34950658,222.24,222.23,7.19512234]
[1759862799686,3.34950658,222.24,222.23,5.19969131]
[1759862799887,3.34950658,222.24,222.23,16.07616652]
[1759862800191,3.34950658,222.24,222.23,18.07159755]
[1759862801192,3.34950658,222.24,222.23,16.07616652]
[1759862802290,3.34746451,222.24,222.23,27.32577278]
[1759862802792,5.60742121,222.28,222.23,26.62577278]
[1759862802999,2.59543103,222.27,222.23,26.62577278]
[1759862803184,1.99543103,222.25,222.23,4.49969131]
[1759862803371,2.59543103,222.25,222.23,4.49969131]
[1759862803573,1.99543103,222.25,222.23,4.49969131]
[1759862803894,3.34744473,222.24,222.23,4.49969131]
[1759862804292,3.34744473,222.24,222.22,0.1]
[1759862804502,1.99543103,222.26,222.22,0.1]
[1759862804701,3.01199018,222.28,222.22,0.1]
[1759862804881,1.99543103,222.27,222.22,0.8]
[1759862805197,1.99543103,222.27,222.23,15.74944876]
[1759862805383,2.59543103,222.27,222.23,15.74944876]
[1759862805901,3.34447756,222.26,222.23,15.74944876]
[1759862806198,3.34447756,222.25,222.23,15.74944876]
[1759862806400,3.34447756,222.24,222.23,16.44944876]
[1759862806697,3.34447756,222.24,222.23,15.74944876]
[1759862807076,3.34447756,222.24,222.23,16.44944876]
[1759862807477,3.34447756,222.24,222.23,15.74944876]
[1759862807781,3.34447756,222.24,222.23,4.4998425]
[1759862807985,3.34447756,222.24,222.23,5.1998425]
[1759862809003,3.34447756,222.24,222.23,4.4998425]
[1759862809205,3.34447756,222.24,222.22,0.1]
[1759862809392,3.34447756,222.23,222.22,10.97647521]
[1759862809882,3.34420041,222.23,222.22,0.1]
[1759862811393,3.34420041,222.23,222.22,0.8]
[1759862812420,3.34420041,222.23,222.22,13.67190624]
[1759862813011,3.01199018,222.3,222.23,10.87647521]
[1759862813303,6.35701965,222.29,222.24,2.69543103]
[1759862813606,3.34502947,222.28,222.25,0.7]
[1759862813808,3.34502947,222.27,222.23,10.87647521]
[1759862813996,3.34502947,222.26,222.22,0.8]
[1759862814306,3.34502947,222.25,222.22,11.67647521]
[1759862814507,3.34502947,222.24,222.23,0.7]
[1759862815431,3.34502947,222.24,222.22,0.1]
[1759862815608,3.34502947,222.23,222.22,0.1]
[1759862816809,3.34502947,222.23,222.22,0.8]
[1759862817007,3.34502947,222.23,222.22,0.1]
[1759862817505,3.34502947,222.23,222.22,13.67190624]
[1759862818005,3.01146211,222.27,222.23,10.87647521]
[1759862818212,3.34683318,222.26,222.24,2.69543103]
[1759862818394,3.34683318,222.25,222.24,12.87190624]
[1759862818998,3.34683318,222.25,222.24,13.57190624]
[1759862821108,3.0128369,222.3,222.25,10.87647521]
[1759862821411,6.36120395,222.29,222.26,0.7]
[1759862821709,6.36120395,222.28,222.26,0.7]
[1759862821907,6.36120395,222.27,222.26,0.7]
[1759862822104,6.36120395,222.27,222.24,11.57647521]
[1759862822418,6.36120395,222.26,222.24,10.87647521]
[1759862822599,3.01530541,222.29,222.24,10.87647521]
[1759862822803,6.36505373,222.28,222.24,10.87647521]
[1759862823107,6.36505373,222.27,222.24,10.87647521]
[1759862823309,6.36505373,222.26,222.24,10.87647521]
[1759862823613,6.36505373,222.25,222.22,0.1]
[1759862823810,3.34974832,222.24,222.22,0.1]
[1759862824017,3.34974832,222.23,222.22,0.1]
[1759862824222,3.34974832,222.23,222.22,4.600045]
[1759862824596,6.36375875,222.23,222.22,4.600045]
[1759862824794,3.34974832,222.23,222.22,4.600045]
[1759862825299,6.36375875,222.23,222.22,4.600045]
[1759862825511,3.34974832,222.23,222.22,4.600045]
[1759862825697,6.36375875,222.23,222.22,4.600045]
[1759862825901,6.96375875,222.23,222.22,4.600045]
[1759862826101,6.36375875,222.23,222.22,4.600045]
[1759862826506,8.95918978,222.23,222.22,0.1]
[1759862826829,8.95612168,222.23,222.22,0.1]
[1759862827116,8.35612168,222.23,222.22,0.1]
[1759862827296,8.95612168,222.23,222.22,0.1]
[1759862830514,6.36069065,222.23,222.22,0.1]
[1759862830908,8.95612168,222.23,222.22,0.1]
[1759862831310,8.35612168,222.23,222.22,0.1]
[1759862831909,8.95612168,222.23,222.22,0.1]
[1759862832717,8.35612168,222.23,222.22,0.1]
[1759862833520,5.34211125,222.23,222.22,0.1]
[1759862833826,8.35612168,222.23,222.22,0.1]
[1759862834200,5.34211125,222.23,222.22,0.1]
[1759862834399,8.35612168,222.23,222.22,0.1]
[1759862834602,5.34211125,222.23,222.22,0.1]
[1759862834922,8.35612168,222.23,222.22,0.1]
[1759862835298,5.34211125,222.23,222.22,0.1]
[1759862835498,8.95612168,222.23,222.22,0.1]
[1759862835820,5.34211125,222.23,222.22,0.1]
[1759862836010,8.35612168,222.23,222.22,0.1]
[1759862836205,5.34211125,222.23,222.22,0.1]
[1759862836420,8.35612168,222.23,222.22,4.600045]
[1759862836624,8.35612168,222.23,222.22,0.1]
[1759862836821,5.34211125,222.23,222.22,0.1]
[1759862837015,8.95612168,222.23,222.22,0.1]
[1759862840013,13.45596418,222.23,222.22,0.1]
[1759862841124,34.25596418,222.23,222.22,0.1]
[1759862842119,6.36069065,222.23,222.22,0.1]
[1759862842322,38.20069065,222.23,222.22,0.79]
[1759862842640,38.20069065,222.23,222.22,0.1]
[1759862843007,38.20069065,222.23,222.22,5.290045]
[1759862843227,38.20069065,222.23,222.22,0.1]
[1759862844135,38.20069065,222.23,222.22,0.79]
[1759862844427,38.20069065,222.23,222.22,5.290045]
[1759862844603,38.20069065,222.23,222.22,0.1]
[1759862844807,40.19612168,222.23,222.22,0.1]
[1759862846244,8.35612168,222.23,222.22,0.1]
[1759862846409,8.35612168,222.23,222.22,0.79]
[1759862846410,40.19612168,222.23,222.22,0.79]
[1759862846609,38.20069065,222.23,222.22,0.79]
[1759862848115,38.20069065,222.23,222.22,5.290045]
[1759862848523,38.20069065,222.23,222.22,0.1]
[1759862848712,40.79612168,222.23,222.22,0.1]
[1759862849931,45.29596418,222.23,222.22,0.1]
[1759862850443,45.20563702,222.23,222.22,0.1]
[1759862851116,46.33121869,222.23,222.22,0.1]
[1759862851533,41.23137619,222.23,222.22,0.1]
[1759862851735,46.33121869,222.23,222.22,0.1]
[1759862852919,6.27036349,222.23,222.22,0.1]
[1759862853124,41.23137619,222.23,222.22,0.1]
[1759862853519,6.27036349,222.23,222.22,0.1]
[1759862853725,41.23137619,222.23,222.22,0.1]
[1759862855039,37.97502313,222.23,222.22,0.1]
[1759862855619,37.97502313,222.23,222.22,0.79]
[1759862855826,37.97502313,222.23,222.22,0.1]
[1759862856038,6.13502313,222.23,222.22,0.79]
[1759862856232,37.97502313,222.23,222.22,0.79]
[1759862856433,34.85401043,222.23,222.22,0.79]
[1759862856629,37.97502313,222.23,222.22,0.79]
[1759862856836,34.85401043,222.23,222.22,0.79]
[1759862857441,37.97502313,222.23,222.22,0.1]
[1759862858126,37.97502313,222.23,222.22,0.79]
[1759862858325,37.97502313,222.23,222.22,5.290045]
[1759862858521,3.01401043,222.23,222.22,5.290045]
[1759862858744,31.84,222.23,222.22,5.290045]
[1759862858937,34.85401043,222.23,222.22,5.290045]
[1759862862348,38.19571583,222.23,222.22,5.290045]
[1759862864337,34.85401043,222.23,222.22,5.290045]
[1759862864657,38.19813095,222.23,222.22,5.290045]
[1759862866243,6.35813095,222.23,222.22,5.290045]
[1759862866549,3.34412052,222.23,222.22,19.28753291]
[1759862867536,1e-08,222.23,222.22,19.28753291]
[1759862867748,20.08,222.29,222.23,10.87647521]
[1759862867942,3.01401043,222.28,222.25,10.87647521]
[1759862868130,3.01401043,222.28,222.26,0.67]
[1759862869154,3.1210127,222.27,222.23,15.37631771]
[1759862869354,3.1210127,222.24,222.23,4.4998425]
[1759862869858,3.1210127,222.24,222.23,5.1698425]
[1759862870058,3.1210127,222.25,222.23,5.1698425]
[1759862872167,6.13502313,222.26,222.23,5.1698425]
[1759862872467,3.01401043,222.26,222.24,0.67]
[1759862872650,6.13502313,222.26,222.24,0.67]
[1759862873251,3.01401043,222.26,222.25,0.67]
[1759862873467,0.6,222.34,222.25,3.7910127]
[1759862873645,37.95446313,222.33,222.26,3.7910127]
[1759862873844,3.01345043,222.32,222.27,0.67]
[1759862874056,3.01345043,222.31,222.29,4.49862791]
[1759862874240,34.83345043,222.3,222.29,4.49862791]
[1759862874638,34.83345043,222.3,222.29,5.16862791]
[1759862875849,34.83345043,222.3,222.27,11.91742045]
[1759862876050,3.01345043,222.29,222.28,0.67]
[1759862876842,3.01345043,222.29,222.28,5.1688303]
[1759862877265,31.82,222.3,222.28,5.1688303]
[1759862877758,31.82,222.31,222.28,5.1688303]
[1759862878361,31.82,222.31,222.28,16.41590606]
[1759862879142,31.82,222.31,222.28,15.74590606]
[1759862879343,3.1210127,222.29,222.26,4.49923513]
[1759862879650,3.1210127,222.27,222.26,4.49923513]
[1759862879848,6.4659283,222.27,222.24,4.49964002]
[1759862880045,6.4659283,222.26,222.24,0.67]
[1759862880373,3.1210127,222.26,222.24,0.67]
[1759862880673,3.1210127,222.26,222.23,16.41944876]
[1759862881345,3.1210127,222.26,222.23,15.74944876]
[1759862881558,3.1210127,222.26,222.25,4.49943757]
[1759862882048,6.46469341,222.26,222.25,4.49943757]
[1759862884153,6.46519815,222.26,222.25,4.49943757]
[1759862885266,3.34418545,222.26,222.25,4.49943757]
[1759862885671,3.1210127,222.27,222.25,4.49943757]
[1759862885972,3.34441498,222.26,222.25,4.49943757]
[1759862886670,3.34441498,222.26,222.24,0.67]
[1759862887283,3.34441498,222.26,222.25,0.67]
[1759862887482,31.8,222.27,222.25,0.67]
[1759862887983,31.8,222.27,222.23,15.74944876]
[1759862888278,31.8,222.27,222.24,0.67]
[1759862889180,31.8,222.27,222.25,4.49943757]
[1759862891799,31.8,222.27,222.25,5.16943757]
[1759862891963,31.8,222.27,222.25,4.49943757]
[1759862892161,31.8,222.27,222.26,0.67]
[1759862892361,3.34259481,222.27,222.26,0.67]
[1759862892787,3.34259481,222.28,222.26,0.67]
[1759862893487,3.34259481,222.28,222.25,15.74803149]
[1759862893688,3.34259481,222.28,222.25,11.91859392]
[1759862894286,3.34259481,222.28,222.26,0.67]
[1759862895679,6.46360751,222.28,222.24,0.67]
[1759862895895,3.34259481,222.27,222.25,0.67]
[1759862896078,34.9210127,222.29,222.26,0.67]
[1759862896392,3.3481271,222.28,222.26,0.67]
[1759862897292,3.3481271,222.27,222.24,0.7]
[1759862897469,3.3481271,222.26,222.25,0.7]
[1759862898078,3.3481271,222.28,222.25,5.19943757]
[1759862898281,3.3481271,222.27,222.25,5.19943757]
[1759862898584,34.9210127,222.29,222.25,4.49943757]
[1759862898585,3.3481271,222.26,222.25,4.49943757]
[1759862898969,3.3481271,222.26,222.25,5.19943757]
[1759862899174,3.3481271,222.28,222.25,0.7]
[1759862899481,3.3481271,222.27,222.26,0.7]
[1759862899679,3.3481271,222.28,222.24,0.7]
[1759862899880,3.3481271,222.27,222.24,0.7]
[1759862900082,3.3481271,222.26,222.25,0.7]
[1759862900688,3.7210127,222.33,222.26,10.87647521]
[1759862900894,3.7210127,222.33,222.26,11.57647521]
[1759862900895,38.25047292,222.32,222.26,11.57647521]
[1759862901200,6.36393483,222.31,222.28,4.4988303]
[1759862901384,6.36393483,222.31,222.28,5.1988303]
[1759862901385,3.34946022,222.3,222.28,5.1988303]
[1759862901581,3.34946022,222.29,222.28,5.1988303]
[1759862901781,3.34946022,222.29,222.28,4.4988303]
[1759862901980,9.48581677,222.31,222.28,5.1988303]
[1759862902183,3.34946022,222.3,222.28,5.1988303]
[1759862902380,3.34946022,222.29,222.28,5.1988303]
[1759862902580,3.34946022,222.3,222.28,5.1988303]
[1759862902885,3.34946022,222.29,222.28,5.1988303]
[1759862903079,3.01554148,222.31,222.28,5.1988303]
[1759862903080,3.34946022,222.3,222.28,5.1988303]
[1759862903284,0.6,222.38,222.28,18.86691876]
[1759862903486,38.14888157,222.35,222.29,3.1210127]
[1759862903676,6.36888157,222.34,222.29,3.1210127]
[1759862903882,3.35190037,222.33,222.3,3.8210127]
[1759862904083,3.35190037,222.32,222.31,11.57647521]
[1759862904286,6.36888157,222.34,222.31,14.69748791]
[1759862904484,3.35190037,222.33,222.32,0.7]
[1759862904799,3.35190037,222.33,222.31,13.99748791]
[1759862905200,3.35190037,222.33,222.32,5.19802087]
[1759862905399,31.78,222.35,222.32,5.19802087]
[1759862905698,3.35096119,222.34,222.32,5.19802087]
[1759862905899,3.35096119,222.34,222.33,0.7]
[1759862906596,35.13096119,222.36,222.33,0.7]
[1759862906799,3.35096119,222.35,222.33,0.7]
[1759862907503,3.35096119,222.35,222.32,15.74307304]
[1759862907715,3.35096119,222.35,222.34,4.49761626]
[1759862908287,3.35096119,222.36,222.34,4.49761626]
[1759862908487,3.35096119,222.35,222.34,4.49761626]
[1759862908702,3.35096119,222.36,222.34,4.49761626]
[1759862908910,3.35096119,222.35,222.34,4.49761626]
[1759862909390,3.35096119,222.36,222.34,4.49761626]
[1759862909721,3.35096119,222.35,222.32,16.44307304]
[1759862909886,3.01437361,222.37,222.32,15.74307304]
[1759862910086,3.34916914,222.36,222.33,0.7]
[1759862910294,3.34916914,222.36,222.34,0.7]
[1759862911382,3.34916914,222.36,222.35,0.7]
[1759862911604,3.34916914,222.36,222.32,17.73697705]
[1759862911605,3.34916914,222.36,222.34,4.49761626]
[1759862911813,1.99390401,222.37,222.34,4.49761626]
[1759862911994,3.34774582,222.36,222.34,4.49761626]
[1759862912514,3.34774582,222.36,222.34,5.19761626]
[1759862912719,3.34774582,222.36,222.34,4.49761626]
[1759862914407,3.34774582,222.36,222.35,0.7]
[1759862914596,3.34774582,222.37,222.35,0.7]
[1759862914797,3.34774582,222.36,222.35,0.7]
[1759862915315,3.34351643,222.37,222.35,5.19741398]
[1759862915915,3.34351643,222.37,222.35,4.49741398]
[1759862916111,5.33742044,222.37,222.33,0.7]
[1759862916303,1.99390401,222.34,222.3,10.87647521]
[1759862916506,1.99390401,222.34,222.3,22.12253908]
[1759862916825,31.76,222.35,222.31,0.7]
[1759862917117,3.34382695,222.34,222.32,0.7]
[1759862917905,3.34382695,222.34,222.33,4.49781855]
[1759862918503,13.913347,222.34,222.28,4.4988303]
[1759862918705,9.96952005,222.29,222.24,0.7]
[1759862918902,1.99390401,222.25,222.18,0.1]
[1759862919103,1.99390401,222.19,222.15,3.59116203]
[1759862919405,0.69,222.27,222.18,10.87647521]
[1759862919710,0.69,222.27,222.17,20.8]
[1759862920018,0.69,222.27,222.18,15.75299306]
[1759862920320,1.99390401,222.19,222.18,20.8]
[1759862920710,1.99390401,222.2,222.18,20.8]
[1759862921008,1.99390401,222.2,222.14,25.18]
[1759862921009,1.99390401,222.19,222.14,25.18]
[1759862921204,1.99390401,222.15,222.14,40.93582965]
[1759862921520,1.99390401,222.15,222.14,65.6481074]
[1759862921704,5.98171203,222.2,222.14,54.77163219]
[1759862922014,1.99390401,222.15,222.14,65.6481074]
[1759862922416,5.98171203,222.2,222.15,10.87647521]
[1759862922714,1.99390401,222.16,222.15,10.87647521]
[1759862922917,1.99390401,222.16,222.15,32.35647521]
[1759862923905,1.99390401,222.15,222.14,29.59163219]
[1759862924105,1.99390401,222.15,222.12,31.76]
[1759862924305,1.99390401,222.13,222.12,31.76]
[1759862924903,1.99390401,222.13,222.12,35.39408118]
[1759862925620,6.70171203,222.2,222.12,35.39408118]
[1759862925803,8.69561604,222.2,222.13,11.11647521]
[1759862926000,1.99390401,222.14,222.13,15.37834348]
[1759862926207,1.99390401,222.15,222.13,26.63301416]
[1759862926607,7.97561604,222.2,222.14,0.24]
[1759862927929,1.99390401,222.15,222.14,0.24]
[1759862928223,1.99390401,222.15,222.14,4.50166561]
[1759862928805,8.64561604,222.2,222.14,17.98973366]
[1759862928806,0.67,222.2,222.14,17.98973366]
[1759862929830,0.67,222.2,222.14,17.74973366]
[1759862931326,2.66390401,222.22,222.16,1.99390401]
[1759862932101,0.67,222.21,222.16,1.99390401]
[1759862932302,0.67,222.2,222.17,15.75370211]
[1759862933712,0.67,222.2,222.17,11.25264437]
[1759862934118,0.67,222.19,222.17,11.25264437]
[1759862934638,1.99390401,222.21,222.17,11.25264437]
[1759862934928,0.67,222.2,222.17,11.25264437]
[1759862936524,0.67,222.19,222.17,11.25264437]
[1759862937308,1.99390401,222.21,222.17,11.25264437]
[1759862937515,0.67,222.2,222.17,11.25264437]
[1759862938705,0.67,222.2,222.19,9.96952005]
[1759862939434,0.67,222.2,222.19,14.47017264]
[1759862940131,0.67,222.2,222.14,4.50166561]
[1759862940340,0.67,222.19,222.14,15.75582965]
[1759862940631,0.67,222.18,222.14,15.75582965]
[1759862940835,0.67,222.17,222.14,15.75582965]
[1759862941034,0.67,222.19,222.14,15.99582965]
[1759862941333,0.67,222.19,222.14,15.75582965]
[1759862941626,0.67,222.22,222.18,9.96952005]
[1759862941829,20.8,222.24,222.21,1.99390401]
[1759862942130,20.8,222.24,222.23,1.99390401]
[1759862942431,21.47,222.24,222.23,1.99390401]
[1759862943334,0.67,222.24,222.23,1.99390401]
[1759862943521,0.67,222.28,222.23,6.49374651]
[1759862943720,0.67,222.3,222.27,1.99390401]
[1759862943926,31.76,222.33,222.29,1.99390401]
[1759862944124,3.33425143,222.32,222.23,15.74944876]
[1759862944325,3.33425143,222.32,222.31,1.99390401]
[1759862944519,24.13425143,222.32,222.31,1.99390401]
[1759862944719,20.8,222.3,222.23,15.74944876]
[1759862944924,0.67,222.29,222.23,15.74944876]
[1759862945515,0.67,222.28,222.23,11.24960626]
[1759862945716,0.67,222.27,222.23,11.24960626]
[1759862945916,0.67,222.26,222.23,11.24960626]
[1759862946137,0.67,222.26,222.25,1.99390401]
[1759862946336,20.8,222.3,222.25,1.99390401]
[1759862946533,0.67,222.29,222.23,11.24960626]
[1759862946853,0.67,222.28,222.23,11.24960626]
[1759862947039,0.67,222.27,222.23,11.24960626]
[1759862947231,0.67,222.26,222.23,11.24960626]
[1759862947538,0.67,222.26,222.25,1.99390401]
[1759862948029,20.8,222.3,222.25,1.99390401]
[1759862948334,0.67,222.29,222.28,1.99390401]
[1759862949643,0.67,222.31,222.28,1.99390401]
[1759862949842,20.8,222.31,222.3,1.99390401]
[1759862950218,24.13493783,222.31,222.3,1.99390401]
[1759862950420,24.80493783,222.31,222.3,1.99390401]
[1759862951239,0.67,222.31,222.3,1.99390401]
[1759862953238,20.8,222.32,222.3,1.99390401]
[1759862953541,53.21,222.32,222.31,1.99390401]
[1759862956444,56.55041012,222.32,222.31,1.99390401]
[1759862956849,56.55041012,222.32,222.24,4.49964002]
[1759862957039,52.54,222.32,222.31,1.99390401]
[1759862957239,55.88051455,222.32,222.31,1.99390401]
[1759862957641,56.55051455,222.32,222.31,1.99390401]
[1759862958545,56.55051455,222.32,222.24,15.98874009]
[1759862958849,52.54,222.32,222.31,1.99390401]
[1759862959043,55.88183198,222.32,222.31,1.99390401]
[1759862959241,56.55183198,222.32,222.31,1.99390401]
[1759862959442,56.55206098,222.32,222.31,1.99390401]
[1759862960437,56.55264385,222.32,222.31,1.99390401]
[1759862964450,76.93015686,222.32,222.18,11.25207172]
[1759862964627,20.8,222.28,222.2,1.99390401]
[1759862964836,20.8,222.25,222.24,1.99390401]
[1759862965032,35.06240124,222.25,222.24,1.99390401]
[1759862967562,3.34240124,222.25,222.24,1.99390401]
[1759862967962,3.34240124,222.25,222.24,6.49354403]
[1759862969182,3.34240124,222.25,222.24,1.99390401]
[1759862969765,3.34240124,222.25,222.22,4.500045]
[1759862969978,3.34240124,222.24,222.22,4.500045]
[1759862970270,3.34240124,222.23,222.22,4.500045]
[1759862970567,0.67,222.26,222.22,4.500045]
[1759862970865,3.34093707,222.25,222.22,4.500045]
[1759862971174,3.34093707,222.24,222.21,4.50024751]
[1759862971369,0.67,222.26,222.23,3.11767844]
[1759862971554,3.34061369,222.25,222.21,15.75086629]
[1759862971761,0.67,222.26,222.21,15.99086629]
[1759862971956,3.34069555,222.25,222.21,15.99086629]
[1759862972277,0.67,222.26,222.21,15.99086629]
[1759862972574,3.34081419,222.25,222.21,15.99086629]
[1759862972873,0.67,222.26,222.24,7.61731846]
[1759862973052,0.67,222.26,222.25,3.11767844]
[1759862973254,4.01069129,222.26,222.25,3.11767844]
[1759862973744,7.61509211,222.36,222.25,3.11767844]
[1759862973945,20.8,222.32,222.31,3.11767844]
[1759862974171,56.53096531,222.32,222.31,3.11767844]
[1759862974370,59.53761587,222.32,222.3,3.11767844]
[1759862974555,59.53761587,222.32,222.29,3.11767844]
[1759862974556,4.01096531,222.31,222.29,3.11767844]
[1759862974753,4.01096531,222.3,222.25,0.24]
[1759862974961,3.34096531,222.29,222.25,0.24]
[1759862975157,3.34096531,222.28,222.25,0.24]
[1759862975346,0.67,222.3,222.25,0.24]
[1759862975543,3.34065878,222.29,222.25,0.24]
[1759862975772,3.34065878,222.28,222.25,0.24]
[1759862975972,0.67,222.3,222.27,7.61664055]
[1759862976278,3.33956787,222.29,222.27,4.49896211]
[1759862976445,3.33956787,222.28,222.27,4.49896211]
[1759862977275,3.33956787,222.28,222.27,7.61664055]
[1759862980979,4.04956787,222.28,222.27,7.61664055]
[1759862981155,3.33956787,222.28,222.27,7.61664055]
[1759862982379,4.04956787,222.28,222.25,4.49927167]
[1759862982552,0.71,222.31,222.27,3.11767844]
[1759862982751,4.05090135,222.3,222.29,3.11767844]
[1759862984162,4.05090135,222.3,222.25,15.74786559]
[1759862984391,4.05090135,222.29,222.25,11.24859392]
[1759862984686,3.34090135,222.28,222.25,11.24859392]
[1759862984882,31.72,222.32,222.24,4.49964002]
[1759862985177,0.71,222.28,222.24,4.49964002]
[1759862985373,0.71,222.28,222.24,15.74874009]
[1759862985577,0.71,222.3,222.27,3.11767844]
[1759862985770,3.34157059,222.29,222.24,15.98874009]
[1759862985979,0.71,222.29,222.28,3.11767844]
[1759862986163,4.05156685,222.29,222.28,3.11767844]
[1759862986363,4.05156685,222.29,222.28,7.61650874]
[1759862988866,4.05156685,222.29,222.28,4.4988303]
[1759862989160,7.16924529,222.29,222.22,4.49964002]
[1759862989360,7.16924529,222.29,222.09,13.61]
[1759862989361,20.8,222.19,222.09,0.1]
[1759862989567,3.11767844,222.11,222.09,0.1]
[1759862989863,136.65959179,222.28,222.1,35.05767844]
[1759862990172,3.11767844,222.2,222.14,3.11767844]
[1759862990478,3.34210053,222.19,222.16,3.11767844]
[1759862990779,3.34210053,222.18,222.17,3.11767844]
[1759862990969,3.34210053,222.18,222.16,3.11767844]
[1759862991169,3.34210053,222.17,222.16,3.11767844]
[1759862991484,20.8,222.24,222.16,35.05767844]
[1759862991777,3.33940831,222.23,222.2,3.11767844]
[1759862991991,0.68,222.25,222.17,0.24]
[1759862992274,3.33962029,222.24,222.19,3.11767844]
[1759862992486,3.79767844,222.25,222.17,0.24]
[1759862992487,0.68,222.25,222.2,3.11767844]
[1759862994463,0.68,222.24,222.2,15.75157515]
[1759862994980,10.87647521,222.2,222.1,4.50247636]
[1759862995278,10.87647521,222.2,222.09,0.1]
[1759862995279,3.11767844,222.13,222.09,4.6026295]
[1759862995596,3.11767844,222.13,222.09,15.85932723]
[1759862996262,3.11767844,222.14,222.09,15.85932723]
[1759862996769,3.79767844,222.14,222.09,15.85932723]
[1759862997165,3.11767844,222.16,222.1,3.35767844]
[1759862997365,3.11767844,222.17,222.1,3.35767844]
[1759862997882,3.79767844,222.18,222.11,3.11767844]
[1759862998581,3.79767844,222.18,222.12,15.75724833]
[1759862998775,3.79767844,222.18,222.13,31.76]
[1759862998974,3.11767844,222.17,222.13,31.76]
[1759862999170,0.68,222.18,222.13,31.76]
[1759862999395,3.11767844,222.17,222.13,31.76]
[1759862999683,3.79767844,222.17,222.13,31.76]
[1759863000084,0.68,222.2,222.12,15.75724833]
[1759863000275,3.11767844,222.2,222.13,34.87767844]
[1759863000470,3.11767844,222.23,222.18,4.50085516]
[1759863000670,3.11767844,222.23,222.19,31.76]
[1759863000975,3.11767844,222.2,222.19,31.76]
[1759863001289,3.79767844,222.2,222.15,4.50146297]
[1759863001487,3.11767844,222.16,222.15,4.50146297]
[1759863001686,3.79767844,222.16,222.15,4.50146297]
[1759863001886,3.11767844,222.17,222.15,4.50146297]
[1759863002087,0.68,222.18,222.15,4.50146297]
[1759863002398,3.11767844,222.17,222.15,4.50146297]
[1759863002695,3.11767844,222.17,222.13,15.75638183]
[1759863003069,0.68,222.18,222.13,15.75638183]
[1759863003283,3.11767844,222.2,222.14,3.35767844]
[1759863003891,3.11767844,222.19,222.13,18.87406027]
[1759863004099,4.49844319,222.3,222.16,3.11767844]
[1759863004399,3.11767844,222.24,222.17,3.11767844]
[1759863004606,3.11767844,222.24,222.18,4.50085516]
[1759863004607,3.79767844,222.24,222.18,4.50085516]
[1759863004776,3.79767844,222.24,222.19,31.82]
[1759863004977,3.79767844,222.23,222.19,31.82]
[1759863005202,3.11767844,222.23,222.19,31.82]
[1759863005505,3.79767844,222.23,222.19,31.82]
[1759863005798,20.8,222.27,222.18,4.50085516]
[1759863005799,3.11767844,222.21,222.18,4.50085516]
[1759863006106,0.68,222.22,222.2,31.8]
[1759863006304,0.68,222.22,222.18,4.50085516]
[1759863006605,0.68,222.22,222.19,31.8]
[1759863006811,0.68,222.21,222.13,11.25436226]
[1759863007018,0.68,222.2,222.13,11.25436226]
[1759863007303,3.11767844,222.18,222.13,11.25436226]
[1759863007485,3.11767844,222.18,222.13,11.49436226]
[1759863007891,3.11767844,222.18,222.14,31.84]
[1759863008411,2.61767844,222.19,222.14,31.84]